Cogmind - Beta 10 @@@ ROGUE MODE // 2020.09.10 @ 22:46:53 Player: Mr.Manatee Result: Destroyed by D-53 Grenadier with Mini Grenade Launcher Performance ------------- Evolutions (0) 0 Regions Visited (2) 400 Robots Destroyed (20) 100 Value Destroyed (464) 464 Prototype IDs (2) 40 Alien Tech Used (0) 0 Bonus (0) 0 TOTAL SCORE: 1004 Bonus ------- None Cogmind --------- Core Integrity 0/250 Matter 267/300 Energy 92/100 System Corruption 1% Temperature Cool (0) Movement Treading (160) Location -10/Mines Parts ------- > --- POWER (1) -------- (None) > --- PROPULSION (2) --- Light Treads Light Treads > --- UTILITY (2) ------ Large Storage Unit Signal Interpreter > --- WEAPON (2) ------- (None) > --- INVENTORY (10) --- Light Treads Aluminum Leg Aluminum Leg Aluminum Leg Small Storage Unit Large Storage Unit High-capacity Matter Pod (88) Datajack Peak State ------------ > --- POWER ------------ Ion Engine > --- PROPULSION ------- Aluminum Leg Aluminum Leg > --- UTILITY ---------- Large Storage Unit Large Storage Unit > --- WEAPON ----------- EM Pulse Gun Small Laser > --- INVENTORY -------- Ion Engine Light Treads Light Treads Light Treads Aluminum Leg Aluminum Leg Small Storage Unit High-capacity Matter Pod Assault Rifle Datajack [Rating: 8] Favorites ----------- Power Ion Engine Engine Ion Engine Propulsion Aluminum Leg Treads Light Treads Leg Aluminum Leg Utility Large Storage Unit Storage Large Storage Unit Processor Signal Interpreter Weapon Assault Rifle Energy Gun EM Pulse Gun Ballistic Gun Assault Rifle Launcher Rocket Launcher Build | -11 -10 -10 ------- Run | Scr Mat Min Slots Evolved . | . . . Power . | . . . Propulsion . | . . . Utility . | . . . Weapon . | . . . Parts Attached 27 | 7 15 5 Power 2 | 1 1 . Engine 2 | 1 1 . Core . | . . . Reactor . | . . . Propulsion 10 | 2 5 3 Treads 3 | . . 3 Leg 7 | 2 5 . Wheel . | . . . Hover . | . . . Flight . | . . . Utility 6 | 2 3 1 Device . | . . . Storage 5 | 2 3 . Processor 1 | . . 1 Hackware . | . . . Protection . | . . . Artifact . | . . . Weapon 9 | 2 6 1 Energy Gun 4 | . 4 . Energy Cannon . | . . . Ballistic Gun 4 | 2 2 . Ballistic Cannon . | . . . Launcher 1 | . . 1 Special Weapon . | . . . Impact Weapon . | . . . Slashing Weapon . | . . . Piercing Weapon . | . . . Special Melee Weapon . | . . . Unidentified Prototypes . | . . . Parts Lost 11 | . 4 7 Power 2 | . 1 1 Propulsion 3 | . . 3 Utility . | . . . Weapon 6 | . 3 3 Highest Loss Streak 4 | . 2 4 Average Slot Usage (%) 88 | . 99 75 Engine 9 | . 13 3 Treads 9 | . . 21 Leg 18 | . 28 6 Storage 24 | . 28 21 Processor 3 | . . 6 Energy Gun 7 | . 13 . Ballistic Gun 10 | . 14 4 Launcher 4 | . . 10 Naked Turns . | . . . Heaviest Build 40 | 16 40 40 Greatest Support 40 | 20 20 40 Greatest Overweight (x) 1 | . 1 1 Average Overweight (x) . | . . . Largest Inventory Capacity 16 | 8 16 16 Average Capacity 12 | 5 12 13 Most Carried 13 | 6 12 13 Average Carried 9 | 4 9 10 Final Capacity 16 | 8 16 10 Final Carried 12 | 6 12 8 Class Distribution -------------------- 100% | Mutant Dominant Class ---------------- Mutant | -10/Materials Mutant | -10/Mines Resources | -11 -10 -10 ----------- Run | Scr Mat Min Matter Collected 698 | 277 288 133 Remotely . | . . . Salvage Created 591 | 61 420 110 Parts 40 | 2 28 10 Haulers Intercepted 1 | . 1 . Recyclers Shooed . | . . . Parts Field Recycled . | . . . Retrieved Matter . | . . . Parts Self-Destructed . | . . . Prevented . | . . . Kills | -11 -10 -10 ------- Run | Scr Mat Min Combat Hostiles Destroyed 16 | . 10 6 Melee 1 | . . 1 Guns 12 | . 9 3 AOE 2 | . . 2 Classes Destroyed 6 | 1 5 . Worker 1 | . 1 . Hauler 1 | . 1 . Recycler 1 | 1 . . Operator 1 | . 1 . Swarmer 6 | . 3 3 Grunt 10 | . 7 3 Best Kill Streak 3 | 1 3 3 Combat Bots Only 3 | . 3 3 Max Kills in Single Turn 1 | 1 1 1 Gunslinging . | . . . Exploded 1 | . . 1 Melee 1 | . . 1 Uniques/NPCs Destroyed . | . . . Combat | -11 -10 -10 -------- Run | Scr Mat Min Damage Taken 1539 | . 650 889 Core 292 | . 85 207 Absorbed by Shields . | . . . Core Remaining (%) 100 | 100 . . Volleys Fired 89 | 4 56 29 Largest 2 | 2 2 2 Hottest 80 | 40 80 40 Shots Fired 140 | 8 99 33 Gun 136 | 8 99 29 Cannon . | . . . Launcher 4 | . . 4 Special . | . . . Kinetic 81 | 8 44 29 Thermal 10 | . 10 . Explosive 4 | . . 4 Electromagnetic 45 | . 45 . Robot Hit Streak 20 | 4 20 4 Robot Miss Streak 3 | 1 2 3 Penetration Max . | . . . Secondary Targets . | . . . Shots Hit Robots 96 | 6 72 18 Core Hits 29 | 2 20 7 Critical Hits . | . . . Critical Kills . | . . . Critical Parts Destroyed . | . . . Melee Attacks . | . . . Impact . | . . . Slashing . | . . . Piercing . | . . . Sneak Attacks . | . . . Combat Hostiles . | . . . Follow-up Attacks . | . . . Damage Inflicted 1387 | 69 1013 305 Guns 1067 | 69 809 189 Cannons . | . . . Explosions 313 | . 202 111 Melee . | . . . Ramming 7 | . 2 5 Kinetic 626 | 69 368 189 Thermal 258 | . 258 . Explosive 111 | . . 111 Electromagnetic 385 | . 385 . Impact . | . . . Slashing . | . . . Piercing . | . . . Highest Corruption 1 | . 1 1 Average Corruption 1 | . 1 1 Corruption Purged . | . . . Effects 5 | . . 5 Message Errors 2 | . . 2 Data Loss (minor) 1 | . . 1 Targeting Errors 2 | . . 2 Overload Shots . | . . . Overflow Damage 63 | . 63 . Projectiles . | . . . Explosions 63 | . 63 . Melee . | . . . Knockbacks . | . . . Impact . | . . . Kinetic . | . . . Secondary . | . . . Self-Inflicted Damage 84 | . 40 44 Shots 3 | . 1 2 Rammed 1 | . . 1 Targets Rammed 3 | . 1 2 Kicked 1 | . 1 . Crushed 1 | . . 1 Highest Temperature 261 | . 261 7 Average Temperature 73 | . 78 5 Received Heat Transfer 417 | . 255 162 Siege Activations . | . . . Robots Corrupted 1 | . 1 . Combat Hostiles 1 | . 1 . Parts Fried 2 | . 2 . Impact Corruptions . | . . . Robots Melted . | . . . Combat Hostiles . | . . . Parts Melted . | . . . Heat Transferred 375 | . 375 . Parts Sabotaged . | . . . Parts Stolen . | . . . Parts Stripped . | . . . Power Chain Reactions 2 | . 2 . Missiles Intercepted . | . . . Alert | -11 -10 -10 ------- Run | Scr Mat Min Peak Influence 175 | 5 175 105 Initial 3 | . 3 . Average 54 | 1 70 42 Maximum Alert Level . | . . . Low Security (%) 100 | 100 100 100 Level 1 . | . . . Level 2 . | . . . Level 3 . | . . . Level 4 . | . . . Level 5 . | . . . High Security . | . . . Max Security . | . . . Squads Dispatched 2 | . 2 . Investigation 1 | . 1 . Extermination . | . . . Reinforcement 1 | . 1 . Assault . | . . . Garrison . | . . . Intercept . | . . . Construction Impeded . | . . . Haulers Reinforced . | . . . Stealth | -11 -10 -10 --------- Run | Scr Mat Min Distress Signals . | . . . Communications Jammed . | . . . Distress Signals . | . . . Times Spotted 26 | . 16 10 Peak Tracking Total 4 | . 4 4 Tactical Retreats 3 | . 1 2 Traps | -11 -10 -10 ------- Run | Scr Mat Min Traps Triggered 3 | . 3 . Indirectly . | . . . Trap Hack Attempts . | . . . Triggered . | . . . Disarmed . | . . . Reprogrammed . | . . . Reused . | . . . Traps Extracted . | . . . Installed . | . . . Triggered . | . . . Machines | -11 -10 -10 ---------- Run | Scr Mat Min Machines Disabled . | . . . Max in Single Turn . | . . . Machines Sabotaged . | . . . Garrisons Compromised . | . . . Overloaded Fab Kills . | . . . Fab Network Shutdowns . | . . . Hacking | -11 -10 -10 --------- Run | Scr Mat Min Machines Accessed 4 | . 4 . Terminals 4 | . 4 . Fabricators . | . . . Repair Stations . | . . . Recycling Units . | . . . Scanalyzers . | . . . Garrison Access . | . . . Total Hacks 9 | . 9 . Successful 5 | . 5 . Failed 4 | . 4 . Catastrophic . | . . . Database Lockouts . | . . . Manual 4 | . 4 . Terminals 9 | . 9 . Fabricators . | . . . Repair Stations . | . . . Recycling Units . | . . . Scanalyzers . | . . . Garrison Access . | . . . Terminal Hacks 5 | . 5 . Robot Analysis 2 | . 2 . Prototype ID Bank 1 | . 1 . Branch Access Points 1 | . 1 . Unreport Threat 1 | . 1 . Fabricator Hacks . | . . . Repair Station Hacks . | . . . Recycling Unit Hacks . | . . . Scanalyzer . | . . . Garrison Access Hacks . | . . . Unauthorized Hacks . | . . . Terminals . | . . . Fabricators . | . . . Repair Stations . | . . . Recycling Units . | . . . Scanalyzers . | . . . Garrison Access . | . . . Data Cores Recovered . | . . . Used . | . . . Hacking Detections 3 | . 3 . Full Trace Events . | . . . Feedback Events . | . . . Feedback Blocked . | . . . Robot Schematics Acquired . | . . . Robots Built . | . . . Matter . | . . . Time . | . . . Total Robot Build Rating . | . . . Part Schematics Acquired . | . . . Parts Built . | . . . Matter . | . . . Time . | . . . Total Part Build Rating . | . . . Parts Repaired . | . . . Time . | . . . Parts Recycled . | . . . Recycled Matter . | . . . Retrieved Matter . | . . . Retrieved Components . | . . . Parts Scanalyzed . | . . . Part Schematics Acquired . | . . . Parts Damaged . | . . . Bothacking | -11 -10 -10 ------------ Run | Scr Mat Min Used RIF Installer . | . . . Robots Hacked . | . . . Non-combat . | . . . Combat . | . . . Robot Hacks Applied . | . . . Relay Couplers Released . | . . . Robots Rewired . | . . . Allies Hacked . | . . . Hacks Repelled . | . . . Allies | -11 -10 -10 -------- Run | Scr Mat Min Total Allies . | . . . Largest Group . | . . . Highest-Rated Group . | . . . Highest-Rated Ally . | . . . Total Orders . | . . . Ally Attacks . | . . . Total Damage . | . . . Kills . | . . . Allies Corrupted . | . . . Allies Melted . | . . . Intel | -11 -10 -10 ------- Run | Scr Mat Min Robot Analysis Total 2 | . 2 . Derelict Logs Recovered 2 | . . 2 Drone Launches . | . . . Drone Recoveries . | . . . Exploration | -11 -10 -10 ------------- Run | Scr Mat Min Turns Passed 1528 | 86 804 638 Spaces Moved 857 | 51 451 355 Core 5 | 5 . . Treads 295 | . . 295 Legs 557 | 46 451 60 Wheels . | . . . Hover . | . . . Flight . | . . . Fastest Speed 50 | 50 120 150 Average Speed 143 | 113 135 158 Slowest Speed 160 | 120 150 160 Overloaded Moves . | . . . Propulsion Burnouts . | . . . Robots Hopped . | . . . Cave-ins Triggered . | . . . Exploration Rate (%) 53 | 4 71 84 Regions Visited 2 Branch Regions 1 Pre-discovered Areas 1 | . . 1 Known Exits Taken 1 | . 1 . Unknown Exits Taken 1 | 1 . . Scrap Searched 1 | . . 1 Spaces Dug . | . . . Terrain Destroyed 56 | . 5 51 Melee . | . . . Projectile . | . . . AOE 56 | . 5 51 Terrain Rammed . | . . . Walls Destroyed . | . . . Machines Disabled . | . . . Actions | -11 -10 -10 --------- Run | Scr Mat Min Total 1014 | 69 547 398 Wait 12 | . 9 3 Move 855 | 50 450 355 Hop . | . . . Pick Up 19 | 8 9 2 Fast Attach 10 | 5 5 . Attach 8 | 2 2 4 Detach . | . . . Swap 9 | . 8 1 Drop 9 | . 7 2 Fire 89 | 4 56 29 Melee . | . . . Ram . | . . . Kick 1 | . 1 . Crush 2 | . . 2 Escape Stasis . | . . . Rewire . | . . . Trap . | . . . Miscellaneous . | . . . Route ------- -11/Scrapyard -10/Materials (discovered 4 exits: *Mat x3 / *Min) -10/Mines (discovered 2 exits: *Mat x2) History --------- Turn | Location | Event 3 | -11/Scrapyard | Discovered new exit (range 16) 87 | -11/Scrapyard | Entered Materials 315 | -10/Materials | Build established: Mutant 643 | -10/Materials | Discovered new exit (range 6) 779 | -10/Materials | Discovered new exit (range 11) 819 | -10/Materials | Identified exit to Mines 847 | -10/Materials | Discovered new exit (range 12) 891 | -10/Materials | Entered Mines 952 | -10/Mines | Received a Rocket Launcher from a helpful Derelict 1036 | -10/Mines | Core integrity fell below 50% 1070 | -10/Mines | Lost 4 parts (1p2n1w) 1112 | -10/Mines | Learned Materials stockpile data 1165 | -10/Mines | Discovered new exit (range 5) 1233 | -10/Mines | Identified exit to Materials 1324 | -10/Mines | Discovered exit to Materials (range 5) 1431 | -10/Mines | Learned location of Zion (-6) 1489 | -10/Mines | Assembled infested the area 1521 | -10/Mines | Core integrity fell below 20% 1529 | -10/Mines | Destroyed by D-53 Grenadier with Mini Grenade Launcher Last Messages --------------- World map updated: -6/Zion. 01466_ ZTHCUPUBPZUNIAQG50C3NQ6807DK31C3P 01489_ ALERT: Infestation in the mines, dispatching Demolisher response squad. 01506_ as-01602 powers down. 01506_ as-32476 powers down. 01510_ C-30 ARC bursts open, deploying its payload. 01510_ D-53 Grenadier unfolds itself. 01510_ K-01 Serf collects debris. 01515_ as-01602 destroyed. 01517_ as-32476 destroyed. 01519_ The unstable cave ceiling collapses. 01520_ as-26394 destroyed. 01520_ as-66494 destroyed. 01520_ as-52716 destroyed. 01522_ as-75602 destroyed. 01524_ Lgt. Treads destroyed. 01525_ The unstable cave ceiling collapses. 01526_ Rocket Launcher destroyed. 01527_ The unstable cave ceiling collapses. Map ----- +----------------------------------------------------+ | ?# ?????????????## ### #????## ##??? | | ? #??????????# ###?# #?????####???? | | # #??????????# ##???# #????????????? | | #??????????## #????# #????????????? | | ????????????# #????# #????????????? | | ?????????????# ##????## ##????????????? | | #?????????????# "%##??????####?????????????? | | #?????????????# ##???????????????????????? | | #?????????????## ####????????????????????? | | #?????????????## ##???????????????????? | | ##????????????# #???????????????????? | | #######??????# #???????????????????? | | #?????## ##???????????????????? | | #????# ##????????????????????? | | #???## ##????????????????????? | | ## ### #???????## #????????????????????? | | ## #????????????## dd #????????????????????? | | ?# ##???????????# ##???????????????????? | | ## ######?????## #####???????????????? | | == #?????# #???????????????? | | ## #?????# # #????# ??????? | | ## ####??# # ###aaa #??????? | | ## ##?## # aaaaa #???????? | | # ## #??# ### ## % "#???????? | | # # ## #??# ??# #???????????????? | | ## ##### ##??# ??# @ #???????????????? | | ?# ######???# ##???????????????? | | ?#### #????????# ### ##????????????????? | | ????# ####?????# ???# ##?????????????????? | | ????# # ##????#??#?### #####??????????????????? | | ????# #### #???####??????????????????????? | | ???## """ #?????????????????????????????? | | ???# """ ### #?????????????????????????????? | | ??## """ #???? #????????????????????????? | | ??# ##?????? ##????????????????????????? | | ??# ###????????? ##?????????????????????????? | | ??# ##?????????????#??????????????????????????? | | ??## ##?????????????????????????????????????????? | | ???####??????????????????????????????????????????? | | ?????????????????????????????????????????????????? | | ?????????????????????????????????????????????????? | | | | | | | | | | | | | | | | | | | +----------------------------------------------------+ Best States ------------- Heat Dissipation 25 Energy Generation 10 Energy Capacity 250 Matter Stores 300 Matter Capacity 300 Sight Range 16 Terrain Scan Density 10 Evasion (%) 40 Recoil Reduction 2 Item Schematics ----------------- None Robot Schematics ------------------ None Fabricated ------------ Nothing Alien Tech Used ----------------- None Achievements -------------- None Challenges ------------ None Game ------ Seed FieldSupercompositeTrap Manual? 0 Play Time 00:12:01 Cumulative 101.5 hours Start 2020.09.10 @ 22:37:32 End 2020.09.10 @ 22:46:53 Sessions 1 Manual Loads 0 Difficulty Rogue Special Mode None Game No. 124 Rogue 124 Adventurer 0 Explorer 0 Win Type - Total 0 Types 0/0/0/0/0/0/0/0/0 Lore% 55 Gallery% 66 Achievement% 48 Wizard Run 0 Options --------- ASCII 0 Keyboard 1 Movement Numpad Keybinds 0 Fullscreen 2 Font 18/SmallcapsGlow Map View 76x50 Tactical HUD 1 Map Filters NONE Filters NONE Steam 1 RUN: 5c73a4f0-54c2-4ed4-a8b8-9b77a8fed693